fUST/lending_fUST_20250822
["ID","MTS","AMOUNT","RATE_DAILY","PERIOD"]
[380596845,1755815438778,-480.0,0.00019726,2]
[380596847,1755815438787,-504.22,0.00019726,2]
[380596849,1755815438796,-480.0,0.00019726,2]
[380596851,1755815438806,-1902.84096757,0.000199,2]
[380596853,1755815438815,-480.0,0.0002,2]
[380596855,1755815438825,-480.0,0.0002,2]
[380596857,1755815438834,-480.0,0.0002,2]
[380596859,1755815438843,-480.0,0.0002,2]
[380596861,1755815438852,-480.0,0.0002,2]
[380596863,1755815438861,-480.0,0.0002,2]
[380596865,1755815438870,-480.0,0.0002,2]
[380596867,1755815438879,-480.0,0.0002,2]
[380596869,1755815438890,-480.0,0.0002,2]
[380596871,1755815438899,-480.0,0.0002,2]
[380596873,1755815438908,-480.0,0.0002,2]
[380596875,1755815438917,-480.0,0.0002,2]
[380596877,1755815438926,-480.0,0.0002,2]
[380596879,1755815438935,-480.0,0.0002,2]
[380596881,1755815438943,-480.0,0.0002,2]
[380596882,1755815438952,-504.22,0.0002,2]
[380596884,1755815438961,-115576.37219799,0.0002,7]
[380596887,1755815438972,-534.94906441,0.0002,7]
[380596889,1755815438983,-1372.13797745,0.0002,7]
[380596891,1755815438994,-294.54076015,0.0002,7]
[380596893,1755815439003,-480.0,0.0002,2]
[380596895,1755815439012,-200.15490596,0.0002021,2]
[380596897,1755815439021,-274.35440039,0.00020273,2]
[380596899,1755815439032,-205.64559961,0.00020273,2]
[380596901,1755815439041,-480.0,0.00020273,2]
[380596903,1755815439050,-127.98144964,0.00020273,2]
[380597016,1755815440144,-352.01855036,0.00020273,2]
[380597018,1755815440153,-480.0,0.00020273,2]
[380597020,1755815440162,-480.0,0.00020273,2]
[380597022,1755815440172,-480.0,0.00020273,2]
[380597024,1755815440181,-480.0,0.00020273,2]
[380597026,1755815440189,-480.0,0.00020273,2]
[380597028,1755815440198,-480.0,0.00020273,2]
[380597030,1755815440209,-480.0,0.00020273,2]
[380597032,1755815440218,-480.0,0.00020273,2]
[380597034,1755815440227,-480.0,0.00020273,2]
[380597036,1755815440236,-20.22267218,0.00020273,2]
[380597038,1755815440247,-366.0670543,0.00020273,2]
[380597291,1755815443128,-93.71027352,0.00020273,2]
[380597293,1755815443138,-504.22,0.00020273,2]
[380597295,1755815443147,-480.0,0.00020273,2]
[380597297,1755815443157,-300.0,0.00020297,20]
[380597299,1755815443166,-300.0,0.00020297,20]
[380597301,1755815443175,-300.0,0.00020297,20]
[380597303,1755815443184,-300.0,0.00020297,20]
[380597305,1755815443193,-300.0,0.00020297,20]
[380597307,1755815443204,-300.0,0.00020297,20]
[380597309,1755815443215,-300.0,0.00020297,20]
[380597311,1755815443224,-300.0,0.00020297,20]
[380597312,1755815443234,-300.0,0.00020297,20]
[380597314,1755815443243,-300.0,0.00020297,20]
[380597316,1755815443253,-300.0,0.00020297,20]
[380597319,1755815443262,-300.0,0.00020297,20]
[380597322,1755815443271,-171.06972648,0.00020297,20]
[380608922,1755816545146,-1200.0,0.00019176,2]
[380608923,1755816545670,-300.0,0.00019177,2]
[380608924,1755816545691,-967.0,0.00019177,2]
[380608925,1755816545711,-300.0,0.00019177,2]
[380608926,1755816545730,-480.0,0.00019178,2]
[380608927,1755816545752,-614.23568303,0.00019178,2]
[380608928,1755816545772,-480.0,0.00019178,2]
[380608929,1755816545792,-480.0,0.00019178,2]
[380608930,1755816545812,-480.0,0.00019178,2]
[380608931,1755816545831,-480.0,0.00019178,2]
[380608932,1755816545850,-480.0,0.00019178,2]
[380608933,1755816545870,-146.72558791,0.00019178,2]
[380608947,1755816632271,-480.0,0.00019177,2]
[380608948,1755816632280,-300.0,0.00019177,2]
[380608949,1755816632290,-480.0,0.00019178,2]
[380608950,1755816632299,-480.0,0.00019178,2]
[380608951,1755816632309,-480.0,0.00019178,2]
[380608952,1755816632318,-480.0,0.00019178,2]
[380608953,1755816632328,-480.0,0.00019178,2]
[380608954,1755816632338,-480.0,0.0001935,2]
[380608955,1755816632347,-480.0,0.0001935,2]
[380608956,1755816632357,-480.0,0.0001935,2]
[380608957,1755816632366,-480.0,0.0001935,2]
[380608958,1755816632376,-200.53375299,0.0001935,2]
[380608959,1755816632385,-480.0,0.0001935,2]
[380608961,1755816632395,-480.0,0.0001935,2]
[380608962,1755816632404,-480.0,0.0001935,2]
[380608963,1755816632414,-480.0,0.0001935,2]
[380608964,1755816632423,-480.0,0.0001935,2]
[380608965,1755816632433,-480.0,0.0001935,2]
[380608966,1755816632442,-480.0,0.0001935,2]
[380608967,1755816632452,-480.0,0.0001935,2]
[380608968,1755816632461,-480.0,0.0001935,2]
[380608969,1755816632471,-480.0,0.0001935,2]
[380608970,1755816632480,-480.0,0.0001935,2]
[380608971,1755816632489,-480.0,0.0001935,2]
[380608972,1755816632499,-333.27441209,0.0001935,2]
[380608973,1755816632509,-462.75289204,0.0001935,2]
[380608974,1755816632519,-480.0,0.0001935,2]
[380608975,1755816632528,-480.0,0.0001935,2]
[380608976,1755816632537,-480.0,0.0001935,2]
[380608977,1755816632546,-422.42330212,0.0001935,2]
[380608978,1755816632555,-480.0,0.00019351,2]
[380608979,1755816632565,-480.0,0.00019351,2]
[380608980,1755816632574,-480.0,0.00019351,2]
[380608981,1755816632584,-480.0,0.00019351,2]
[380608982,1755816632594,-480.0,0.00019351,2]
[380608983,1755816632605,-480.0,0.00019351,2]
[380608984,1755816632615,-480.0,0.00019351,2]
[380608985,1755816632624,-480.0,0.00019351,2]
[380608986,1755816632634,-868.16514538,0.00019351,2]
[380608987,1755816632647,-444.55485462,0.00019351,2]
[380608988,1755816632656,-475.00019703,0.00019351,2]
[380608989,1755816632666,-480.0,0.00019351,2]
[380608990,1755816632678,-480.0,0.00019351,2]
[380608991,1755816632687,-29083.27831564,0.00019352,2]
[380608992,1755816632697,-480.0,0.00019452,2]
[380608993,1755816632706,-480.0,0.00019452,2]
[380608994,1755816632716,-300.0,0.00019561,20]
[380608995,1755816632725,-300.0,0.00019561,20]
[380608996,1755816632734,-300.0,0.00019561,20]
[380608997,1755816632744,-300.0,0.00019561,20]
[380608998,1755816632754,-300.0,0.00019561,20]
[380608999,1755816632764,-300.0,0.00019561,20]
[380609000,1755816632774,-300.0,0.00019561,20]
[380609001,1755816632784,-300.0,0.00019561,20]
[380609002,1755816632794,-300.0,0.00019561,20]
[380609003,1755816632803,-300.0,0.00019561,20]
[380609004,1755816632812,-300.0,0.00019561,20]
[380609005,1755816632822,-300.0,0.00019561,20]
[380609006,1755816632831,-300.0,0.00019561,20]
[380609007,1755816632841,-300.0,0.00019561,20]
[380609008,1755816632850,-300.0,0.00019561,20]
[380609009,1755816632859,-600.0,0.00019561,20]
[380609010,1755816632869,-480.0,0.00019624,2]
[380609011,1755816632878,-480.0,0.00019624,2]
[380609012,1755816632888,-480.0,0.00019624,2]
[380609013,1755816632897,-480.0,0.00019624,2]
[380609014,1755816632907,-480.0,0.00019624,2]
[380609015,1755816632916,-480.0,0.00019624,2]
[380609016,1755816632926,-232.15,0.00019624,2]
[380609017,1755816632935,-480.0,0.00019624,2]
[380609018,1755816632945,-480.0,0.00019624,2]
[380609019,1755816632954,-480.0,0.00019625,2]
[380609020,1755816632964,-480.0,0.00019625,2]
[380609021,1755816632973,-480.0,0.00019625,2]
[380609022,1755816632983,-480.0,0.00019625,2]
[380609023,1755816632992,-480.0,0.00019625,2]
[380609024,1755816633002,-480.0,0.00019625,2]
[380609025,1755816633011,-1312.72,0.00019625,2]
[380609026,1755816633021,-480.0,0.00019625,2]
[380609027,1755816633031,-480.0,0.00019625,2]
[380609028,1755816633042,-252.76759872,0.00019864,2]
[380609029,1755816633052,-480.0,0.00019898,2]
[380609030,1755816633062,-93.59120013,0.00019898,2]
[380609031,1755816633075,-357.74727458,0.00019898,2]
[380609032,1755816633087,-28.66152529,0.00019898,2]
[380609033,1755816633096,-480.0,0.00019898,2]
[380609034,1755816633105,-36.91205889,0.00019898,2]
[380609038,1755816638321,-443.08794111,0.00019898,2]
[380609039,1755816638332,-480.0,0.00019898,2]
[380609040,1755816638341,-480.0,0.00019898,2]
[380609041,1755816638350,-480.0,0.00019899,2]
[380609042,1755816638360,-480.0,0.00019899,2]
[380609043,1755816638369,-480.0,0.00019899,2]
[380609044,1755816638379,-480.0,0.00019899,2]
[380609045,1755816638388,-480.0,0.00019899,2]
[380609046,1755816638397,-480.0,0.00019899,2]
[380609047,1755816638407,-1312.72,0.00019899,2]
[380609048,1755816638416,-480.0,0.00019899,2]
[380609049,1755816638427,-480.0,0.00019899,2]
[380609050,1755816638436,-1839.41293525,0.000199,2]
[380609051,1755816638446,-480.0,0.00020172,2]
[380609052,1755816638455,-480.0,0.00020172,2]
[380609053,1755816638465,-484.35718448,0.00020172,2]
[380609054,1755816638475,-480.0,0.00020172,2]
[380609055,1755816638484,-480.0,0.00020172,2]
[380609056,1755816638493,-480.0,0.00020172,2]
[380609057,1755816638502,-480.0,0.00020173,2]
[380609058,1755816638512,-480.0,0.00020173,2]
[380609059,1755816638521,-480.0,0.00020173,2]
[380609060,1755816638531,-480.0,0.00020173,2]
[380609062,1755816638540,-480.0,0.00020173,2]
[380609063,1755816638550,-480.0,0.00020173,2]
[380609065,1755816638559,-1312.72,0.00020173,2]
[380609066,1755816638568,-480.0,0.00020173,2]
[380609067,1755816638578,-480.0,0.00020173,2]
[380609068,1755816638587,-480.0,0.00020446,2]
[380609069,1755816638596,-263.30048235,0.00020446,2]
[380609070,1755816638609,-480.0,0.00020446,2]
[380609071,1755816638618,-480.0,0.00020446,2]
[380609072,1755816638627,-492.87,0.00020446,2]
[380609073,1755816638636,-480.0,0.00020447,2]
[380609074,1755816638647,-480.0,0.00020447,2]
[380609075,1755816638657,-480.0,0.00020447,2]
[380609076,1755816638667,-480.0,0.00020447,2]
[380609077,1755816638677,-480.0,0.00020447,2]
[380609078,1755816638686,-480.0,0.00020447,2]
[380609079,1755816638696,-1312.72,0.00020447,2]
[380609080,1755816638706,-480.0,0.00020447,2]
[380609081,1755816638716,-480.0,0.00020447,2]
[380609082,1755816638726,-500.0,0.00020579,2]
[380609083,1755816638736,-500.0,0.0002063,2]
[380609084,1755816638746,-500.0,0.0002063,2]
[380609085,1755816638755,-480.0,0.0002072,2]
[380609086,1755816638765,-480.0,0.0002072,2]
[380609087,1755816638774,-480.0,0.0002072,2]
[380609088,1755816638784,-480.0,0.00020721,2]
[380609089,1755816638794,-480.0,0.00020721,2]
[380609090,1755816638803,-480.0,0.00020721,2]
[380609091,1755816638812,-480.0,0.00020721,2]
[380609092,1755816638821,-480.0,0.00020721,2]
[380609093,1755816638830,-1312.72,0.00020721,2]
[380609094,1755816638839,-480.0,0.00020721,2]
[380609095,1755816638848,-480.0,0.00020721,2]
[380609096,1755816638858,-502.3984836,0.0002088,2]
[380609097,1755816638868,-420.0,0.00020899,2]
[380609098,1755816638877,-160.0,0.000209,2]
[380609099,1755816638886,-500.0,0.00020973,2]
[380609100,1755816638897,-500.0,0.00020973,2]
[380609101,1755816638906,-500.0,0.00020973,2]
[380609102,1755816638915,-500.0,0.00020973,2]
[380609103,1755816638927,-500.0,0.00020973,2]
[380609104,1755816638936,-500.0,0.00020973,2]
[380609105,1755816638946,-500.0,0.00020973,2]
[380609106,1755816638956,-500.0,0.00020973,2]
[380609107,1755816638966,-736.44,0.00020991,3]
[380609108,1755816638975,-480.0,0.00020994,2]
[380609109,1755816638985,-480.0,0.00020994,2]
[380609110,1755816638994,-480.0,0.00020994,2]
[380609111,1755816639004,-480.0,0.00020995,2]
[380609112,1755816639013,-480.0,0.00020995,2]
[380609113,1755816639023,-480.0,0.00020995,2]
[380609114,1755816639033,-480.0,0.00020995,2]
[380609115,1755816639042,-480.0,0.00020995,2]
[380609116,1755816639051,-1312.72,0.00020995,2]
[380609117,1755816639061,-25680.89299818,0.00020998,2]
[380609118,1755816639070,-245.47,0.00021,3]
[380609119,1755816639080,-2788.72953591,0.00021001,5]
[380609912,1755817107519,261.67281363,0.00027397,120]
[380609913,1755817544124,-167.971478,0.00019178,2]
[380609914,1755817612503,300.0,0.00026,120]
[380609915,1755817772162,-199.95848161,0.00019178,2]
[380609935,1755817832636,-300.0,0.00019349,2]
[380609937,1755817832645,-480.0,0.0001935,2]
[380609939,1755817832655,-106.294864,0.0001935,2]
[380609942,1755817832690,-373.705136,0.0001935,2]
[380609943,1755817832700,-480.0,0.0001935,2]
[380609944,1755817832709,-480.0,0.0001935,2]
[380609945,1755817832719,-480.0,0.0001935,2]
[380609946,1755817832728,-480.0,0.00019624,2]
[380609947,1755817832737,-476.1,0.00019624,2]
[380609948,1755817832746,-480.0,0.00019898,2]
[380609949,1755817832756,-480.0,0.00019898,2]
[380609950,1755817832765,-480.0,0.00019898,2]
[380609951,1755817832774,-480.0,0.00019898,2]
[380609952,1755817832783,-480.0,0.00019898,2]
[380609953,1755817832792,-480.0,0.00019898,2]
[380609954,1755817832802,-480.0,0.00019898,2]
[380609955,1755817832812,-480.0,0.00019898,2]
[380609956,1755817832823,-480.0,0.00019898,2]
[380609957,1755817832832,-480.0,0.00019898,2]
[380609958,1755817832842,-480.0,0.00019898,2]
[380609959,1755817832851,-480.0,0.00019898,2]
[380609960,1755817832861,-480.0,0.00019898,2]
[380609961,1755817832870,-480.0,0.00019898,2]
[380609962,1755817832880,-480.0,0.00019898,2]
[380609963,1755817832889,-480.0,0.00019898,2]
[380609964,1755817832899,-480.0,0.00019898,2]
[380609965,1755817832909,-428.85350656,0.00019898,2]
[380609966,1755817832921,-51.14649344,0.00019898,2]
[380609967,1755817832929,-420.6623529,0.00019899,2]
[380609968,1755817832941,-59.3376471,0.00019899,2]
[380609969,1755817832951,-480.0,0.00019899,2]
[380609970,1755817832961,-452.94870187,0.00019899,2]
[380609971,1755817832970,-461.77262274,0.00019899,2]
[380609972,1755817832979,-480.0,0.00019899,2]
[380609973,1755817832989,-480.0,0.00019899,2]
[380609974,1755817832998,-440.0,0.00019899,2]
[380609975,1755817833008,-124.05785281,0.00019899,2]
[380609984,1755817840566,-355.94214719,0.00019899,2]
[380609985,1755817840576,-480.0,0.00019899,2]
[380609986,1755817840586,-480.0,0.00019899,2]
[380609987,1755817840595,-480.0,0.00019899,2]
[380609988,1755817840605,-265.12068846,0.00019899,2]
[380609990,1755817840615,-480.0,0.00019899,2]
[380609991,1755817840624,-460.0,0.00019899,2]
[380609992,1755817840634,-480.0,0.00019899,2]
[380609993,1755817840643,-480.0,0.00019899,2]
[380609994,1755817840652,-480.0,0.00019899,2]
[380609995,1755817840661,-480.0,0.00019899,2]
[380609996,1755817840671,-480.0,0.00019899,2]
[380609997,1755817840681,-480.0,0.00019899,2]
[380609998,1755817840691,-480.0,0.00019899,2]
[380609999,1755817840701,-1778.09917079,0.000199,2]
[380610000,1755817840710,-480.0,0.0002017,2]
[380610001,1755817840720,-480.0,0.0002017,2]
[380610002,1755817840729,-480.0,0.00020171,2]
[380610003,1755817840738,-480.0,0.00020171,2]
[380610004,1755817840747,-480.0,0.00020171,2]
[380610005,1755817840756,-480.0,0.00020171,2]
[380610006,1755817840766,-929.84,0.00020171,2]
[380610007,1755817840776,-480.0,0.00020172,2]
[380610008,1755817840785,-539.82,0.00020172,2]
[380610009,1755817840795,-290.40297172,0.00020172,2]
[380610010,1755817840806,-162.04,0.00020172,2]
[380610011,1755817840816,-296.05731157,0.00020172,2]
[380610012,1755817840825,-300.0,0.00020295,20]
[380610013,1755817840835,-300.0,0.00020295,20]
[380610014,1755817840844,-300.0,0.00020295,20]
[380610015,1755817840853,-300.0,0.00020295,20]
[380610016,1755817840862,-300.0,0.00020295,20]
[380610017,1755817840872,-300.0,0.00020295,20]
[380610018,1755817840884,-300.0,0.00020295,20]
[380610019,1755817840894,-300.0,0.00020295,20]
[380610020,1755817840904,-300.0,0.00020295,20]
[380610021,1755817840914,-300.0,0.00020295,20]
[380610022,1755817840923,-300.0,0.00020295,20]
[380610023,1755817840936,-300.0,0.00020295,20]
[380610024,1755817840946,-300.0,0.00020295,20]
[380610025,1755817840955,-300.0,0.00020295,20]
[380610026,1755817840965,-300.0,0.00020295,20]
[380610027,1755817840975,-480.0,0.00020445,2]
[380610028,1755817840984,-480.0,0.00020445,2]
[380610029,1755817840994,-480.0,0.00020445,2]
[380610030,1755817841003,-480.0,0.00020445,2]
[380610031,1755817841012,-929.84,0.00020445,2]
[380610032,1755817841021,-397.03176355,0.00020446,2]
[380610033,1755817841031,-600.0,0.000207,20]
[380610034,1755817841040,-480.0,0.00020719,2]
[380610035,1755817841051,-480.0,0.00020719,2]
[380610036,1755817841062,-480.0,0.00020719,2]
[380610037,1755817841072,-348.93,0.00020719,2]
[380610038,1755817841081,-929.84,0.00020719,2]
[380610039,1755817841091,-500.0,0.00020787,2]
[380610040,1755817841100,-480.0,0.00020993,2]
[380610041,1755817841109,-480.0,0.00020993,2]
[380610042,1755817841119,-480.0,0.00020993,2]
[380610043,1755817841128,-929.84,0.00020993,2]
[380610044,1755817841138,-12292.69594681,0.00021001,5]
[380610045,1755817841147,-1778.09917052,0.0002101,2]
[380610046,1755817841157,-500.0,0.00021137,2]
[380610047,1755817841166,-500.0,0.00021137,2]
[380610048,1755817841175,-160.0,0.0002119,2]
[380610049,1755817841185,-6295.11884119,0.000212,30]
[380610050,1755817841195,-215.86710461,0.00021251,2]
[380610051,1755817841204,-216.95272161,0.00021251,2]
[380610052,1755817841213,-160.0,0.00021251,2]
[380610053,1755817841222,-160.0,0.00021251,2]
[380610054,1755817841231,-844.19128999,0.00021251,2]
[380610055,1755817841241,-480.0,0.00021267,2]
[380610056,1755817841251,-480.0,0.00021267,2]
[380610057,1755817841260,-625.1819461,0.00021267,2]
[380610058,1755817841269,-929.84,0.00021267,2]
[380610059,1755817841278,-600.0,0.0002128,2]
[380610060,1755817841287,-1000.0,0.00021335,2]
[380610061,1755817841296,-480.0,0.00021541,2]
[380610062,1755817841305,-480.0,0.00021541,2]
[380610063,1755817841314,-929.84,0.00021541,2]
[380610064,1755817841324,-1000.0,0.00021685,2]
[380610065,1755817841333,-1000.0,0.00021685,2]
[380610066,1755817841342,-260.0,0.00021738,2]
[380610067,1755817841351,-480.0,0.00021815,2]
[380610068,1755817841361,-480.0,0.00021815,2]
[380610069,1755817841372,-929.84,0.00021815,2]
[380610070,1755817841382,-2000.0,0.0002186,3]
[380610071,1755817841391,-1500.0,0.00021883,2]
[380610072,1755817841400,-150.0,0.000219,2]
[380610073,1755817841411,-500.0,0.00021917,2]
[380610074,1755817841421,-500.0,0.00021917,2]
[380610075,1755817841430,-500.0,0.00021917,2]
[380610076,1755817841439,-500.0,0.00021917,2]
[380610077,1755817841450,-500.0,0.00021917,2]
[380610078,1755817841460,-500.0,0.00021917,2]
[380610079,1755817841469,-500.0,0.00021917,2]
[380610080,1755817841478,-500.0,0.00021917,2]
[380610081,1755817841488,-500.0,0.00021917,2]
[380610082,1755817841497,-395.75782404,0.00021917,2]
[380610083,1755817841507,-200.0,0.00021918,2]
[380610084,1755817841516,-3716.45799434,0.00022,2]
[380610085,1755817841525,-354.79774518,0.00022,2]
[380610086,1755817841535,-480.0,0.00022089,3]
[380610087,1755817841544,-480.0,0.00022089,3]
[380610088,1755817841554,-929.84,0.00022089,3]
[380610089,1755817841563,-1500.0,0.000221,2]
[380610090,1755817841574,-165.22,0.000221,2]
[380610091,1755817841584,-1778.09917052,0.0002212,2]
[380610092,1755817841593,-12690.45384448,0.00022199,2]
[380610093,1755817841602,-4772.25,0.00022225,2]
[380610094,1755817841611,-1500.0,0.00022233,2]
[380610095,1755817841621,-1500.0,0.00022233,2]
[380610096,1755817841630,-500.0,0.00022265,2]
[380610097,1755817841640,-200.0,0.00022286,2]
[380610098,1755817841649,-480.0,0.00022363,3]
[380610099,1755817841659,-480.0,0.00022363,3]
[380610100,1755817841668,-929.84,0.00022363,3]
[380610101,1755817841677,-3000.0,0.00022419,3]
[380610102,1755817841687,-344.65382489,0.00022419,3]
[380610103,1755817841696,-276.203,0.00022485,2]
[380610104,1755817841707,-1012.39295752,0.000225,2]
[380610105,1755817841716,-480.0,0.00022637,3]
[380610106,1755817841726,-480.0,0.00022637,3]
[380610107,1755817841735,-929.84,0.00022637,3]
[380610108,1755817841745,-720.0,0.0002277,20]
[380610109,1755817841754,-2000.0,0.00022781,2]
[380610110,1755817841764,-2000.0,0.00022781,2]
[380610111,1755817841775,-163.1,0.000228,7]
[380610112,1755817841784,-1000.0,0.00022813,2]
[380610113,1755817841793,-480.0,0.00022911,3]
[380610114,1755817841803,-480.0,0.00022911,3]
[380610115,1755817841813,-929.84,0.00022911,3]
[380610116,1755817841823,-160.0,0.00023,2]
[380610117,1755817841833,-216.95272161,0.00023,3]
[380610118,1755817841843,-844.19128999,0.00023,3]
[380610119,1755817841852,-358.55564018,0.0002306,2]
[380610120,1755817841862,-480.0,0.00023185,3]
[380610121,1755817841871,-480.0,0.00023185,3]
[380610122,1755817841882,-929.84,0.00023185,3]
[380610123,1755817841892,-1778.09917052,0.00023229,2]
[380610124,1755817841901,-1000.0,0.00023328,2]
[380610125,1755817841911,-938.52392881,0.00023361,2]
[380610126,1755817841920,-460.3,0.00023459,3]
[380610127,1755817841929,-245.95,0.00023459,3]
[380610128,1755817841938,-929.84,0.00023459,3]
[380610129,1755817841947,-929.84,0.00023733,3]
[380610130,1755817841956,-929.84,0.00024007,3]
[380610131,1755817841965,-1054.11254381,0.0002416,2]
[380610132,1755817841975,-929.84,0.00024281,3]
[380610133,1755817841984,-1778.09917052,0.00024339,2]
[380610134,1755817841993,-160.0,0.00024383,3]
[380610135,1755817842003,-160.0,0.00024383,3]
[380610136,1755817842012,-4772.25,0.00024416,4]
[380610137,1755817842022,-490.94,0.00024443,3]
[380610138,1755817842032,-929.84,0.00024555,3]
[380610139,1755817842041,-4629.67709948,0.00024649,2]
[380610148,1755817843892,-715.80521687,0.00024649,2]
[380610149,1755817843902,-475.75737799,0.00024649,2]
[380610150,1755817844012,-307.13034475,0.00024649,2]
[380610151,1755817844024,-500.0,0.00024649,2]
[380610152,1755817844033,-500.0,0.00024649,2]
[380610153,1755817844045,-257.12308932,0.00024649,2]
[380610155,1755817846536,-242.87691068,0.00024649,2]
[380610156,1755817846547,-8370.19352001,0.0002465,2]
[380610163,1755818907222,612.28,0.00019111,2]
[380610337,1755820025160,234.0,0.00019111,2]
[380610338,1755820193686,593.40264662,0.00019111,2]
[380610339,1755820193711,9406.59735338,0.00019111,2]
[380610340,1755820207166,3862.0,0.00019111,2]
[380610530,1755820238361,-160.0,0.00019348,2]
[380610533,1755820238377,-2672.74115818,0.000199,2]
[380610536,1755820238387,-1481.74930896,0.000199,2]
[380610539,1755820238396,-1481.74930876,0.0002101,2]
[380610542,1755820238406,-844.19128999,0.00021681,2]
[380610544,1755820238416,-216.95272161,0.00021681,2]
[380610546,1755820238436,-1200.0,0.00022112,2]
[380610548,1755820238449,-508.0,0.00022113,2]
[380610550,1755820238458,-230.0,0.00022114,2]
[380610551,1755820238468,-300.0,0.00022114,2]
[380610553,1755820238477,-300.0,0.00022114,2]
[380610554,1755820238486,-300.0,0.00022114,2]
[380610555,1755820238496,-931.61710942,0.00022115,2]
[380610556,1755820238505,-2771.88,0.0002408,3]
[380610558,1755820238515,-220.963,0.0002408,5]
[380610560,1755820238525,-1481.74930876,0.00024339,2]
[380610562,1755820238535,-15366.70153112,0.0002465,2]
[380610564,1755820238545,-500.0,0.000247,2]
[380610566,1755820238554,-163.39805474,0.00025018,2]
[380610568,1755820238564,-1000.0,0.00025248,2]
[380610570,1755820238573,-600.0,0.00025397,20]
[380610572,1755820238583,-973.0,0.00025406,2]
[380610574,1755820238593,-2154.0,0.00025406,2]
[380610576,1755820238602,-637.0,0.00025406,2]
[380610578,1755820238612,-1481.74930876,0.00025449,3]
[380610580,1755820238622,-1500.0,0.00025796,2]
[380610582,1755820238631,-2200.0,0.00025911,2]
[380610584,1755820238640,-1742.54011791,0.00026,30]
[380610586,1755820238649,-1481.74930876,0.00026559,5]
[380610588,1755820238660,-255.653512,0.000267,7]
[380610590,1755820238670,-255.653512,0.000267,7]
[380610591,1755820238680,-151.0,0.000267,7]
[380610593,1755820238689,-151.0,0.000267,7]
[380610595,1755820238699,-151.0,0.000267,7]
[380610597,1755820238710,-151.0,0.000267,7]
[380610599,1755820238720,-301.658454,0.000267,7]
[380610601,1755820238730,-161.08699025,0.00027,3]
[380610603,1755820238741,-417.15472785,0.00027,3]
[380610605,1755820238751,-417.15472785,0.00027,7]
[380610607,1755820238761,-417.15472785,0.00027,3]
[380610609,1755820238770,-417.15472785,0.00027,7]
[380610611,1755820238779,-528.88070896,0.00027,3]
[380610613,1755820238789,-528.88070896,0.00027,7]
[380610615,1755820238799,-528.88070896,0.00027,3]
[380610617,1755820238809,-528.88070896,0.00027,7]
[380610618,1755820238819,-524.71617926,0.0002712,2]
[380610619,1755820238829,-524.71617925,0.00027183,2]
[380610620,1755820238839,-282.74,0.00027189,3]
[380610622,1755820238848,-848.25,0.00027189,3]
[380610624,1755820238858,-549850.94749618,0.00027199,2]
[380611302,1755820246386,-1000.0,0.000267,2]
[380611304,1755820246395,-2200.0,0.00027199,2]
[380611306,1755820246405,-52443.89036377,0.00027199,2]
[380618983,1755821165190,6731.40264662,0.00019111,2]